[Event "Early-Titled-Tuesday-Blitz-August-29-2023"]
[Site "Chess.com"]
[Date "2023.08.29"]
[Round "7"]
[White "jk13"]
[Black "VerdeNotte"]
[Result "1-0"]
[WhiteElo "2670"]
[BlackElo "2889"]
[TimeControl "180+1"]
[EndTime "9:17:10 PDT"]
[Termination "jk13 won by resignation"]

1. e4 {[%clk 0:02:57.7]} 1... e5 {[%clk 0:03:00.3]} 2. Nf3 {[%clk 0:02:57.6]}
2... Nc6 {[%clk 0:03:00.8]} 3. Bc4 {[%clk 0:02:58.1]} 3... Nf6 {[%clk
0:03:00.8]} 4. d3 {[%clk 0:02:58.4]} 4... Bc5 {[%clk 0:03:00.8]} 5. c3 {[%clk
0:02:58.4]} 5... d6 {[%clk 0:03:01.3]} 6. Bb3 {[%clk 0:02:59]} 6... a5 {[%clk
0:03:01.2]} 7. Nbd2 {[%clk 0:02:59.4]} 7... O-O {[%clk 0:02:59.2]} 8. O-O {[%clk
0:02:58.9]} 8... Be6 {[%clk 0:02:58.3]} 9. Bc2 {[%clk 0:02:58.5]} 9... d5 {[%clk
0:02:57.7]} 10. h3 {[%clk 0:02:58.4]} 10... b5 {[%clk 0:02:44.7]} 11. Qe2 {[%clk
0:02:52.7]} 11... dxe4 {[%clk 0:02:40.8]} 12. dxe4 {[%clk 0:02:52.6]} 12... Qb8
{[%clk 0:02:36.7]} 13. a4 {[%clk 0:02:44.3]} 13... b4 {[%clk 0:02:36.5]} 14. Nc4
{[%clk 0:02:44.5]} 14... Nd7 {[%clk 0:02:19.8]} 15. Ng5 {[%clk 0:02:42.5]} 15...
Re8 {[%clk 0:02:11.9]} 16. Nxe6 {[%clk 0:02:28.8]} 16... Rxe6 {[%clk 0:02:12.8]}
17. Ne3 {[%clk 0:02:27.8]} 17... Ne7 {[%clk 0:02:01.7]} 18. Nf5 {[%clk
0:01:49.5]} 18... Nxf5 {[%clk 0:01:56.5]} 19. exf5 {[%clk 0:01:49.6]} 19... Re8
{[%clk 0:01:57.1]} 20. Be4 {[%clk 0:01:35.2]} 20... Ra7 {[%clk 0:01:57.1]} 21.
Bg5 {[%clk 0:01:35.7]} 21... Be7 {[%clk 0:01:50.7]} 22. Be3 {[%clk 0:01:19.1]}
22... Bc5 {[%clk 0:01:50.6]} 23. Bc6 {[%clk 0:01:10.4]} 23... Rd8 {[%clk
0:01:33.7]} 24. Rad1 {[%clk 0:00:58.3]} 24... Bxe3 {[%clk 0:01:32.4]} 25. Qxe3
{[%clk 0:00:54.9]} 25... Nb6 {[%clk 0:01:32.7]} 26. Qxe5 {[%clk 0:00:50.3]}
26... Rd6 {[%clk 0:01:09.6]} 27. Rfe1 {[%clk 0:00:36.3]} 27... h6 {[%clk
0:01:03.7]} 28. Bb5 {[%clk 0:00:33.2]} 28... Ra8 {[%clk 0:00:43.4]} 29. cxb4
{[%clk 0:00:27.3]} 29... axb4 {[%clk 0:00:33.2]} 30. b3 {[%clk 0:00:27.6]} 30...
Qf8 {[%clk 0:00:17.7]} 31. Rxd6 {[%clk 0:00:25.2]} 31... cxd6 {[%clk 0:00:17.9]}
32. Qd4 {[%clk 0:00:25.1]} 32... Rb8 {[%clk 0:00:17]} 33. Qxb4 {[%clk
0:00:22.4]} 33... Nd5 {[%clk 0:00:16.9]} 34. Qd4 {[%clk 0:00:19.6]} 34... Nf6
{[%clk 0:00:17.3]} 35. Re3 {[%clk 0:00:15.8]} 35... d5 {[%clk 0:00:17.5]} 36.
Re5 {[%clk 0:00:14.7]} 36... Qa3 {[%clk 0:00:16.4]} 37. Qe3 {[%clk 0:00:11.7]}
37... Qa1+ {[%clk 0:00:14.6]} 38. Kh2 {[%clk 0:00:11.3]} 38... d4 {[%clk
0:00:14.1]} 39. Qg3 {[%clk 0:00:10.8]} 39... Qb1 {[%clk 0:00:09.3]} 40. Re7
{[%clk 0:00:08.5]} 40... Qxf5 {[%clk 0:00:08.1]} 41. Qxb8+ {[%clk 0:00:07.6]}
41... Kh7 {[%clk 0:00:07.9]} 42. Qg3 {[%clk 0:00:07.3]} 42... Ng8 {[%clk
0:00:02.7]} 43. Bd3 {[%clk 0:00:06.7]} 43... Nxe7 {[%clk 0:00:03.3]} 44. Bxf5+
{[%clk 0:00:07]} 44... Nxf5 {[%clk 0:00:04.2]} 45. Qd3 {[%clk 0:00:06.9]} 45...
g6 {[%clk 0:00:04.5]} 46. a5 {[%clk 0:00:07.8]} 1-0

[Event "Early-Titled-Tuesday-Blitz-August-29-2023"]
[Site "Chess.com"]
[Date "2023.08.29"]
[Round "7"]
[White "wannabe2700"]
[Black "MetiForce"]
[Result "1-0"]
[WhiteElo "2655"]
[BlackElo "2879"]
[TimeControl "180+1"]
[EndTime "9:17:13 PDT"]
[Termination "wannabe2700 won by resignation"]

1. c3 {[%clk 0:02:44.2]} 1... f5 {[%clk 0:02:57.1]} 2. d4 {[%clk 0:02:43.5]}
2... Nf6 {[%clk 0:02:57.8]} 3. g3 {[%clk 0:02:43.4]} 3... g6 {[%clk 0:02:58.1]}
4. Bg2 {[%clk 0:02:43.7]} 4... Bg7 {[%clk 0:02:58.7]} 5. Nd2 {[%clk 0:02:43.8]}
5... O-O {[%clk 0:02:59.5]} 6. e4 {[%clk 0:02:44.1]} 6... d6 {[%clk 0:03:00.2]}
7. Qe2 {[%clk 0:02:42.3]} 7... Nc6 {[%clk 0:02:59.8]} 8. e5 {[%clk 0:02:39.3]}
8... dxe5 {[%clk 0:02:54.1]} 9. dxe5 {[%clk 0:02:40.2]} 9... Ng4 {[%clk
0:02:54.4]} 10. f4 {[%clk 0:02:35.4]} 10... Be6 {[%clk 0:02:52.5]} 11. Ngf3
{[%clk 0:02:33.8]} 11... Kh8 {[%clk 0:02:48.9]} 12. Ng5 {[%clk 0:02:31]} 12...
Bd5 {[%clk 0:02:46.6]} 13. Ndf3 {[%clk 0:02:15.4]} 13... h6 {[%clk 0:02:22.1]}
14. h3 {[%clk 0:02:15.1]} 14... Ngxe5 {[%clk 0:02:22.3]} 15. Nxe5 {[%clk
0:02:07.9]} 15... Nxe5 {[%clk 0:02:21.6]} 16. fxe5 {[%clk 0:02:05.9]} 16... hxg5
{[%clk 0:02:19.8]} 17. Bxg5 {[%clk 0:01:35.8]} 17... Bxg2 {[%clk 0:02:19.5]} 18.
Qxg2 {[%clk 0:01:36.7]} 18... Bxe5 {[%clk 0:02:19.6]} 19. O-O {[%clk 0:01:36.5]}
19... Qd6 {[%clk 0:02:17.3]} 20. Rad1 {[%clk 0:01:32.1]} 20... Qb6+ {[%clk
0:02:16.7]} 21. Kh1 {[%clk 0:01:32.1]} 21... Rae8 {[%clk 0:02:13.3]} 22. Rfe1
{[%clk 0:01:29.2]} 22... Bf6 {[%clk 0:02:13.4]} 23. Qd2 {[%clk 0:01:27.3]} 23...
Kg7 {[%clk 0:02:08.6]} 24. Bh6+ {[%clk 0:01:26.7]} 24... Kf7 {[%clk 0:02:09]}
25. Bxf8 {[%clk 0:01:27.6]} 25... Rxf8 {[%clk 0:02:08.5]} 26. Qd5+ {[%clk
0:01:22.8]} 26... Kg7 {[%clk 0:02:08.7]} 27. Re2 {[%clk 0:01:23.2]} 27... c6
{[%clk 0:02:03.6]} 28. Qf3 {[%clk 0:01:13.6]} 28... Qa6 {[%clk 0:01:59.6]} 29.
a3 {[%clk 0:01:12.8]} 29... Qb5 {[%clk 0:01:35.7]} 30. Rd7 {[%clk 0:01:11.3]}
30... Rf7 {[%clk 0:01:36.2]} 31. Kg2 {[%clk 0:01:10.4]} 31... a5 {[%clk
0:01:36.1]} 32. Qd3 {[%clk 0:01:09.9]} 32... Qb3 {[%clk 0:01:33.9]} 33. c4
{[%clk 0:01:05.5]} 33... Qxd3 {[%clk 0:01:30.8]} 34. Rxd3 {[%clk 0:01:05.2]}
34... e5 {[%clk 0:01:31.5]} 35. b4 {[%clk 0:01:03.6]} 35... a4 {[%clk 0:01:31]}
36. Red2 {[%clk 0:00:59.4]} 36... e4 {[%clk 0:01:24.8]} 37. Rd7 {[%clk
0:00:59.4]} 37... g5 {[%clk 0:01:17.2]} 38. Rxf7+ {[%clk 0:00:59.2]} 38... Kxf7
{[%clk 0:01:18.1]} 39. Rd7+ {[%clk 0:00:59.6]} 39... Ke6 {[%clk 0:01:18.3]} 40.
Rxb7 {[%clk 0:01:00.5]} 40... f4 {[%clk 0:01:18.4]} 41. Rb6 {[%clk 0:00:57.6]}
41... f3+ {[%clk 0:01:18.5]} 42. Kf1 {[%clk 0:00:57.8]} 42... Bb2 {[%clk
0:01:07.9]} 43. Rxc6+ {[%clk 0:00:52.3]} 43... Ke5 {[%clk 0:01:08.2]} 44. Rc8
{[%clk 0:00:26.8]} 44... e3 {[%clk 0:01:06.3]} 45. Re8+ {[%clk 0:00:24.6]} 45...
Kd4 {[%clk 0:01:06.3]} 46. c5 {[%clk 0:00:23.7]} 46... Kd3 {[%clk 0:00:41.3]}
47. c6 {[%clk 0:00:20.2]} 47... Bd4 {[%clk 0:00:29.4]} 48. Rxe3+ {[%clk
0:00:08.8]} 48... Bxe3 {[%clk 0:00:29.6]} 49. c7 {[%clk 0:00:09.7]} 49... Bc1
{[%clk 0:00:29.2]} 50. c8=Q {[%clk 0:00:10.6]} 50... Bxa3 {[%clk 0:00:30.1]} 51.
Qa6+ {[%clk 0:00:10]} 51... Kc3 {[%clk 0:00:30.6]} 52. Qxa4 {[%clk 0:00:10.9]}
52... Bxb4 {[%clk 0:00:31.5]} 53. Qc6+ {[%clk 0:00:10.9]} 53... Kd4 {[%clk
0:00:31.5]} 54. Qxf3 {[%clk 0:00:11.8]} 54... Bd6 {[%clk 0:00:32.2]} 55. Qg4+
{[%clk 0:00:12.7]} 55... Ke5 {[%clk 0:00:31.8]} 56. Qxg5+ {[%clk 0:00:13.1]}
56... Ke6 {[%clk 0:00:32.7]} 57. Qg6+ {[%clk 0:00:13.6]} 57... Ke5 {[%clk
0:00:33.1]} 58. Qg5+ {[%clk 0:00:13.8]} 58... Ke6 {[%clk 0:00:33.3]} 59. Qg4+
{[%clk 0:00:14.7]} 59... Kf6 {[%clk 0:00:33.4]} 60. Kg2 {[%clk 0:00:15.6]} 60...
Be5 {[%clk 0:00:33.6]} 61. h4 {[%clk 0:00:16.4]} 61... Bxg3 {[%clk 0:00:34]} 62.
Qxg3 {[%clk 0:00:16.3]} 1-0

[Event "Early-Titled-Tuesday-Blitz-August-29-2023"]
[Site "Chess.com"]
[Date "2023.08.29"]
[Round "7"]
[White "ValentunHulka"]
[Black "biostatistician"]
[Result "1-0"]
[WhiteElo "2756"]
[BlackElo "2579"]
[TimeControl "180+1"]
[EndTime "9:17:13 PDT"]
[Termination "ValentunHulka won on time"]

1. d4 {[%clk 0:03:00.9]} 1... Nf6 {[%clk 0:02:59.8]} 2. c4 {[%clk 0:03:01.4]}
2... g6 {[%clk 0:03:00.1]} 3. Nc3 {[%clk 0:03:02]} 3... Bg7 {[%clk 0:03:00.6]}
4. e4 {[%clk 0:03:02.2]} 4... d6 {[%clk 0:03:01.1]} 5. Nf3 {[%clk 0:03:02.5]}
5... O-O {[%clk 0:03:02]} 6. h3 {[%clk 0:03:03.1]} 6... c5 {[%clk 0:03:00]} 7.
Be3 {[%clk 0:03:02.5]} 7... cxd4 {[%clk 0:02:56.7]} 8. Nxd4 {[%clk 0:03:02.5]}
8... Nc6 {[%clk 0:02:56.7]} 9. Qd2 {[%clk 0:03:01.7]} 9... Bd7 {[%clk
0:02:53.1]} 10. f3 {[%clk 0:03:02.1]} 10... Nh5 {[%clk 0:02:51.4]} 11. O-O-O
{[%clk 0:02:52.5]} 11... Ng3 {[%clk 0:02:50]} 12. Rg1 {[%clk 0:02:51.9]} 12...
Qa5 {[%clk 0:02:35.5]} 13. Kb1 {[%clk 0:02:45.6]} 13... Rac8 {[%clk 0:02:21.7]}
14. Qf2 {[%clk 0:02:32.8]} 14... Nxf1 {[%clk 0:02:17.3]} 15. Qxf1 {[%clk
0:02:18.3]} 15... Ne5 {[%clk 0:01:51.1]} 16. Nb3 {[%clk 0:02:00.4]} 16... Qa6
{[%clk 0:01:42.1]} 17. c5 {[%clk 0:01:44.9]} 17... Nc4 {[%clk 0:01:41.8]} 18.
Bd4 {[%clk 0:01:38.3]} 18... e5 {[%clk 0:00:53]} 19. Bf2 {[%clk 0:01:35.8]}
19... Be6 {[%clk 0:00:52]} 20. Nd5 {[%clk 0:01:32]} 20... Bxd5 {[%clk
0:00:40.7]} 21. Rxd5 {[%clk 0:01:31.8]} 21... dxc5 {[%clk 0:00:26.4]} 22. Nxc5
{[%clk 0:01:27.4]} 22... Qb5 {[%clk 0:00:19.7]} 23. b3 {[%clk 0:01:00.1]} 23...
Rxc5 {[%clk 0:00:10]} 24. Bxc5 {[%clk 0:00:54.2]} 24... Nd2+ {[%clk 0:00:07.5]}
25. Rxd2 {[%clk 0:00:54.4]} 25... Qxc5 {[%clk 0:00:07.9]} 26. Qc1 {[%clk
0:00:53.3]} 26... Qe3 {[%clk 0:00:07.5]} 27. Re1 {[%clk 0:00:51.5]} 27... Qb6
{[%clk 0:00:06.5]} 28. Qc4 {[%clk 0:00:48.3]} 28... Bh6 {[%clk 0:00:05.3]} 29.
Rd7 {[%clk 0:00:48.8]} 29... Bf4 {[%clk 0:00:04]} 30. Qd5 {[%clk 0:00:45.7]}
30... Qf2 {[%clk 0:00:03.7]} 31. Rd1 {[%clk 0:00:40.8]} 31... Qxg2 {[%clk
0:00:03.9]} 32. Qd3 {[%clk 0:00:31.9]} 32... Qxh3 {[%clk 0:00:04.1]} 33. Rxb7
{[%clk 0:00:32.3]} 33... a5 {[%clk 0:00:03.9]} 34. Rd7 {[%clk 0:00:27.1]} 34...
a4 {[%clk 0:00:03.9]} 35. Rd8 {[%clk 0:00:27.8]} 35... axb3 {[%clk 0:00:03.8]}
36. Rxf8+ {[%clk 0:00:27]} 36... Kxf8 {[%clk 0:00:04.7]} 37. axb3 {[%clk
0:00:27.8]} 37... Kg7 {[%clk 0:00:04.6]} 38. b4 {[%clk 0:00:27.9]} 38... h5
{[%clk 0:00:04.9]} 39. b5 {[%clk 0:00:28.1]} 39... Qc8 {[%clk 0:00:03.9]} 40.
Kb2 {[%clk 0:00:26.5]} 40... h4 {[%clk 0:00:03.6]} 41. Kb3 {[%clk 0:00:24.1]}
41... h3 {[%clk 0:00:03.8]} 42. Qc4 {[%clk 0:00:24.6]} 42... Qb7 {[%clk
0:00:02.2]} 43. Qc6 {[%clk 0:00:24.6]} 43... Qa7 {[%clk 0:00:02.3]} 44. b6
{[%clk 0:00:20.7]} 44... Qa6 {[%clk 0:00:02.6]} 45. Qc5 {[%clk 0:00:15.6]} 45...
h2 {[%clk 0:00:01.4]} 46. Qb4 {[%clk 0:00:15.5]} 1-0

[Event "Early-Titled-Tuesday-Blitz-August-29-2023"]
[Site "Chess.com"]
[Date "2023.08.29"]
[Round "7"]
[White "Andrei_Skvortsov"]
[Black "Vaibhavraut99"]
[Result "0-1"]
[WhiteElo "2680"]
[BlackElo "2579"]
[TimeControl "180+1"]
[EndTime "9:17:15 PDT"]
[Termination "Vaibhavraut99 won by resignation"]

1. e4 {[%clk 0:03:00.9]} 1... c5 {[%clk 0:02:58.6]} 2. d4 {[%clk 0:02:54.3]}
2... cxd4 {[%clk 0:02:58.7]} 3. Qxd4 {[%clk 0:02:55.2]} 3... Nc6 {[%clk
0:02:58.5]} 4. Qd3 {[%clk 0:02:52.7]} 4... Nf6 {[%clk 0:02:58.7]} 5. Nc3 {[%clk
0:02:53.3]} 5... d6 {[%clk 0:02:58.2]} 6. Bg5 {[%clk 0:02:53.2]} 6... e6 {[%clk
0:02:55.2]} 7. Nf3 {[%clk 0:02:49.9]} 7... Be7 {[%clk 0:02:54.7]} 8. O-O-O
{[%clk 0:02:49.9]} 8... a6 {[%clk 0:02:49.5]} 9. Nd4 {[%clk 0:02:43.5]} 9... Bd7
{[%clk 0:02:42.9]} 10. f4 {[%clk 0:02:42.5]} 10... h6 {[%clk 0:02:40.7]} 11. Bh4
{[%clk 0:02:41.2]} 11... g5 {[%clk 0:02:38.4]} 12. Nxc6 {[%clk 0:02:33.8]} 12...
Bxc6 {[%clk 0:02:36.1]} 13. fxg5 {[%clk 0:02:34.1]} 13... Ng4 {[%clk 0:02:32.9]}
14. Kb1 {[%clk 0:02:27.9]} 14... h5 {[%clk 0:02:28.2]} 15. h3 {[%clk 0:02:23.5]}
15... Ne5 {[%clk 0:02:24.6]} 16. Qe3 {[%clk 0:02:18.9]} 16... Rg8 {[%clk
0:02:21.1]} 17. Be2 {[%clk 0:02:16.4]} 17... Bxg5 {[%clk 0:02:18.7]} 18. Bxg5
{[%clk 0:02:15.5]} 18... Qxg5 {[%clk 0:02:19.6]} 19. Qb6 {[%clk 0:02:09]} 19...
Rd8 {[%clk 0:02:15.6]} 20. h4 {[%clk 0:01:49.7]} 20... Qg6 {[%clk 0:02:08.2]}
21. g3 {[%clk 0:01:47.8]} 21... Bxe4 {[%clk 0:02:01.8]} 22. Nxe4 {[%clk
0:01:30.6]} 22... Qxe4 {[%clk 0:02:02.7]} 23. Bxh5 {[%clk 0:01:29.6]} 23... Rxg3
{[%clk 0:01:57.5]} 24. Rdf1 {[%clk 0:00:56.9]} 24... Rg2 {[%clk 0:01:50.7]} 25.
Qc7 {[%clk 0:00:50.3]} 25... Rd7 {[%clk 0:01:40.6]} 26. Qc8+ {[%clk 0:00:49.3]}
26... Ke7 {[%clk 0:01:36.5]} 27. Bd1 {[%clk 0:00:41.5]} 27... Qh7 {[%clk
0:01:25]} 28. h5 {[%clk 0:00:37]} 28... Rg8 {[%clk 0:01:24.1]} 29. Qc3 {[%clk
0:00:35.8]} 29... b5 {[%clk 0:01:20.3]} 30. h6 {[%clk 0:00:32.3]} 30... Rg6
{[%clk 0:01:13.5]} 31. Qh3 {[%clk 0:00:24.8]} 31... Rd8 {[%clk 0:01:12.3]} 32.
Qh4+ {[%clk 0:00:18.8]} 32... Kd7 {[%clk 0:01:12.2]} 33. a3 {[%clk 0:00:13.1]}
33... Rh8 {[%clk 0:01:12]} 34. Qe4 {[%clk 0:00:10.5]} 34... Rc8 {[%clk
0:00:57.9]} 35. Qb7+ {[%clk 0:00:10.1]} 35... Rc7 {[%clk 0:00:55.2]} 36. Qxa6
{[%clk 0:00:10.1]} 36... Rxh6 {[%clk 0:00:55.7]} 37. Qxb5+ {[%clk 0:00:10.8]}
37... Ke7 {[%clk 0:00:56.2]} 38. Qb6 {[%clk 0:00:08.1]} 38... Rd7 {[%clk
0:00:53.3]} 39. Rhg1 {[%clk 0:00:07.8]} 39... Nc4 {[%clk 0:00:45.5]} 40. Qd4
{[%clk 0:00:07.3]} 40... Rh4 {[%clk 0:00:39.4]} 41. Qc3 {[%clk 0:00:07]} 41...
Rb7 {[%clk 0:00:35.8]} 42. b3 {[%clk 0:00:06.3]} 42... Nxa3+ {[%clk 0:00:32.2]}
43. Kb2 {[%clk 0:00:06.7]} 43... Nc4+ {[%clk 0:00:31.6]} 44. Kb1 {[%clk
0:00:07.1]} 44... Ne5 {[%clk 0:00:32.1]} 45. Qe3 {[%clk 0:00:05.5]} 45... Qh6
{[%clk 0:00:29.5]} 46. Qg3 {[%clk 0:00:03.6]} 46... Nc4 {[%clk 0:00:22.9]} 47.
Qc3 {[%clk 0:00:02.5]} 47... Qh8 {[%clk 0:00:18.4]} 48. Re1 {[%clk 0:00:02.4]}
48... Qxc3 {[%clk 0:00:18.1]} 0-1

[Event "Early-Titled-Tuesday-Blitz-August-29-2023"]
[Site "Chess.com"]
[Date "2023.08.29"]
[Round "7"]
[White "Anton_Demchenko"]
[Black "tsaruk_maks"]
[Result "1-0"]
[WhiteElo "2936"]
[BlackElo "2760"]
[TimeControl "180+1"]
[EndTime "9:17:17 PDT"]
[Termination "Anton_Demchenko won by resignation"]

1. e4 {[%clk 0:03:00.9]} 1... e5 {[%clk 0:02:49.8]} 2. Nf3 {[%clk 0:03:00.6]}
2... Nc6 {[%clk 0:02:50.4]} 3. Bc4 {[%clk 0:03:00.3]} 3... Nf6 {[%clk
0:02:49.6]} 4. d3 {[%clk 0:03:00.3]} 4... Be7 {[%clk 0:02:48.7]} 5. Nc3 {[%clk
0:02:58.6]} 5... O-O {[%clk 0:02:47.8]} 6. a4 {[%clk 0:02:58.4]} 6... d6 {[%clk
0:02:47.2]} 7. Bg5 {[%clk 0:02:55.6]} 7... Be6 {[%clk 0:02:47]} 8. Bxf6 {[%clk
0:02:54.1]} 8... Bxf6 {[%clk 0:02:46.7]} 9. Nd5 {[%clk 0:02:54.6]} 9... g6
{[%clk 0:02:40.6]} 10. a5 {[%clk 0:02:54.1]} 10... a6 {[%clk 0:02:40.2]} 11. h4
{[%clk 0:02:53.8]} 11... h5 {[%clk 0:02:40.1]} 12. Qd2 {[%clk 0:02:47]} 12...
Bxd5 {[%clk 0:02:25.4]} 13. Bxd5 {[%clk 0:02:46.7]} 13... Ne7 {[%clk 0:02:06.3]}
14. Bb3 {[%clk 0:02:43.6]} 14... d5 {[%clk 0:02:03.3]} 15. Qe2 {[%clk
0:02:31.4]} 15... Qd6 {[%clk 0:01:47.9]} 16. Kf1 {[%clk 0:02:09.4]} 16... Rad8
{[%clk 0:01:45]} 17. Ra4 {[%clk 0:02:01.5]} 17... Kg7 {[%clk 0:01:30.3]} 18. g3
{[%clk 0:01:41.2]} 18... c5 {[%clk 0:01:15.3]} 19. exd5 {[%clk 0:01:36.6]} 19...
Nxd5 {[%clk 0:01:16.2]} 20. Re4 {[%clk 0:01:35.4]} 20... Rfe8 {[%clk 0:01:14.8]}
21. Kg2 {[%clk 0:01:26.5]} 21... Nb4 {[%clk 0:00:51]} 22. Nd2 {[%clk 0:01:11.7]}
22... Nc6 {[%clk 0:00:44.3]} 23. Nc4 {[%clk 0:01:12.3]} 23... Qc7 {[%clk
0:00:43]} 24. Ba4 {[%clk 0:01:12.1]} 24... Re6 {[%clk 0:00:31.6]} 25. Bxc6
{[%clk 0:01:10.6]} 25... Qxc6 {[%clk 0:00:31.4]} 26. Re1 {[%clk 0:01:03.4]}
26... Kh7 {[%clk 0:00:24.9]} 27. Kg1 {[%clk 0:01:00.6]} 27... Rde8 {[%clk
0:00:24.5]} 28. Qf3 {[%clk 0:00:51.9]} 28... Qc7 {[%clk 0:00:21.2]} 29. g4
{[%clk 0:00:45.1]} 29... Bg7 {[%clk 0:00:08.4]} 30. gxh5 {[%clk 0:00:42.5]}
30... f5 {[%clk 0:00:08.7]} 31. R4e2 {[%clk 0:00:43]} 31... e4 {[%clk
0:00:09.4]} 32. dxe4 {[%clk 0:00:41.6]} 32... Qf7 {[%clk 0:00:06.6]} 33. exf5
{[%clk 0:00:39.5]} 33... gxf5 {[%clk 0:00:05.7]} 34. Rxe6 {[%clk 0:00:37.1]}
34... Rxe6 {[%clk 0:00:06.6]} 35. Rxe6 {[%clk 0:00:37.7]} 35... Qxe6 {[%clk
0:00:07.5]} 36. b3 {[%clk 0:00:36.6]} 36... Bd4 {[%clk 0:00:07]} 37. Qxb7+
{[%clk 0:00:32.2]} 37... Kh8 {[%clk 0:00:07.2]} 38. Qf3 {[%clk 0:00:30.3]} 38...
Qg8+ {[%clk 0:00:03.6]} 39. Kf1 {[%clk 0:00:30.6]} 39... Qe6 {[%clk 0:00:03.2]}
40. Kg2 {[%clk 0:00:27.9]} 40... Kh7 {[%clk 0:00:03.7]} 41. Nd2 {[%clk
0:00:11.8]} 41... Qg8+ {[%clk 0:00:03.1]} 42. Kh1 {[%clk 0:00:09.9]} 42... Qe6
{[%clk 0:00:03.4]} 43. Nf1 {[%clk 0:00:10.1]} 43... Kh6 {[%clk 0:00:03.1]} 44.
Ng3 {[%clk 0:00:09.8]} 44... Qe1+ {[%clk 0:00:03.7]} 45. Kg2 {[%clk 0:00:10.3]}
45... f4 {[%clk 0:00:03.7]} 46. Qxf4+ {[%clk 0:00:10.3]} 1-0

[Event "Early-Titled-Tuesday-Blitz-August-29-2023"]
[Site "Chess.com"]
[Date "2023.08.29"]
[Round "7"]
[White "HansOnTwitch"]
[Black "TanitoluwaAps116"]
[Result "1-0"]
[WhiteElo "2932"]
[BlackElo "2773"]
[TimeControl "180+1"]
[EndTime "9:17:17 PDT"]
[Termination "HansOnTwitch won by resignation"]

1. e4 {[%clk 0:03:00.9]} 1... c5 {[%clk 0:02:48.5]} 2. Nf3 {[%clk 0:03:00.6]}
2... e6 {[%clk 0:02:48.2]} 3. b3 {[%clk 0:02:59.3]} 3... a6 {[%clk 0:02:45.3]}
4. Bb2 {[%clk 0:02:58.9]} 4... d5 {[%clk 0:02:42.8]} 5. exd5 {[%clk 0:02:57.3]}
5... exd5 {[%clk 0:02:43.7]} 6. g3 {[%clk 0:02:57]} 6... Nc6 {[%clk 0:02:42]} 7.
Bg2 {[%clk 0:02:52.6]} 7... Nf6 {[%clk 0:02:42.2]} 8. Qe2+ {[%clk 0:02:51.6]}
8... Be7 {[%clk 0:02:42.5]} 9. Bxf6 {[%clk 0:02:50.2]} 9... gxf6 {[%clk
0:02:43.3]} 10. O-O {[%clk 0:02:48.1]} 10... O-O {[%clk 0:02:43.4]} 11. Nc3
{[%clk 0:02:47.7]} 11... f5 {[%clk 0:02:42.2]} 12. Ne5 {[%clk 0:02:29.2]} 12...
Be6 {[%clk 0:02:25]} 13. Nxc6 {[%clk 0:02:20.9]} 13... bxc6 {[%clk 0:02:21.4]}
14. Qh5 {[%clk 0:02:19.1]} 14... Bf6 {[%clk 0:02:17.2]} 15. Rae1 {[%clk
0:02:16.7]} 15... Bg7 {[%clk 0:02:14.2]} 16. Ne2 {[%clk 0:02:08.8]} 16... Qf6
{[%clk 0:02:08.5]} 17. Nf4 {[%clk 0:02:06.9]} 17... Rfe8 {[%clk 0:02:03.5]} 18.
c3 {[%clk 0:01:54.2]} 18... Bd7 {[%clk 0:01:56.7]} 19. Nd3 {[%clk 0:01:53.2]}
19... Qd6 {[%clk 0:01:55.8]} 20. Bh3 {[%clk 0:01:52.6]} 20... c4 {[%clk
0:01:40.5]} 21. Nf4 {[%clk 0:01:50.2]} 21... cxb3 {[%clk 0:01:37.1]} 22. axb3
{[%clk 0:01:48.9]} 22... Qh6 {[%clk 0:01:32.7]} 23. Qf3 {[%clk 0:01:38.5]} 23...
Re4 {[%clk 0:01:31.4]} 24. Bg2 {[%clk 0:01:20.7]} 24... Rae8 {[%clk 0:01:28.8]}
25. Qd1 {[%clk 0:01:19.8]} 25... R4e7 {[%clk 0:01:19.5]} 26. d4 {[%clk
0:01:10.2]} 26... Qd6 {[%clk 0:01:17.4]} 27. b4 {[%clk 0:01:08.2]} 27... Bh6
{[%clk 0:01:10.7]} 28. Nd3 {[%clk 0:01:06.8]} 28... f4 {[%clk 0:01:03.5]} 29.
Re5 {[%clk 0:00:46.9]} 29... f6 {[%clk 0:00:52.8]} 30. Rxe7 {[%clk 0:00:40.1]}
30... Rxe7 {[%clk 0:00:52]} 31. Qd2 {[%clk 0:00:33]} 31... Bg4 {[%clk 0:00:43]}
32. Re1 {[%clk 0:00:26.8]} 32... Kg7 {[%clk 0:00:35.1]} 33. Rxe7+ {[%clk
0:00:22.9]} 33... Qxe7 {[%clk 0:00:36]} 34. Nxf4 {[%clk 0:00:19.4]} 34... Bxf4
{[%clk 0:00:35.7]} 35. gxf4 {[%clk 0:00:20.1]} 35... Qe6 {[%clk 0:00:31.7]} 36.
Bf1 {[%clk 0:00:17.6]} 36... Bf3 {[%clk 0:00:30.7]} 37. h3 {[%clk 0:00:15]}
37... Qf5 {[%clk 0:00:22.8]} 38. Qe3 {[%clk 0:00:13.8]} 38... Qg6+ {[%clk
0:00:20.5]} 39. Kh2 {[%clk 0:00:13.9]} 39... Be4 {[%clk 0:00:19.8]} 40. Qg3
{[%clk 0:00:13.3]} 40... Kf7 {[%clk 0:00:13.8]} 41. Qxg6+ {[%clk 0:00:12.8]}
41... hxg6 {[%clk 0:00:14.7]} 42. Bxa6 {[%clk 0:00:13]} 42... Ke6 {[%clk
0:00:14.9]} 43. Kg3 {[%clk 0:00:12.5]} 43... Kd6 {[%clk 0:00:15]} 44. Be2 {[%clk
0:00:11]} 44... Bf5 {[%clk 0:00:12.5]} 45. Bg4 {[%clk 0:00:11.1]} 45... Be4
{[%clk 0:00:12.1]} 46. f5 {[%clk 0:00:11.7]} 46... g5 {[%clk 0:00:04.9]} 47. f4
{[%clk 0:00:11.3]} 47... Bd3 {[%clk 0:00:03.1]} 48. fxg5 {[%clk 0:00:11]} 48...
fxg5 {[%clk 0:00:04]} 49. h4 {[%clk 0:00:11.4]} 49... gxh4+ {[%clk 0:00:04.2]}
50. Kxh4 {[%clk 0:00:12.2]} 50... Ke7 {[%clk 0:00:04.7]} 51. Kg5 {[%clk
0:00:12.7]} 51... Be4 {[%clk 0:00:04.6]} 52. f6+ {[%clk 0:00:13.6]} 52... Kf7
{[%clk 0:00:04.7]} 53. Bd7 {[%clk 0:00:14.1]} 1-0